bitfinex/quotes_BTCUSD_20241014
["timestamp","ask_amount","ask_price","bid_price","bid_amount"]
[1728921768779,0.41097447,66030.0,66029.0,0.511826]
[1728921769277,0.42119167,66030.0,66029.0,0.505826]
[1728921769548,0.42319167,66030.0,66029.0,0.505826]
[1728921769777,0.42218871,66030.0,66029.0,0.511826]
[1728921770232,0.46000784,66030.0,66029.0,0.505826]
[1728921770479,0.46100784,66030.0,66029.0,0.505826]
[1728921771003,0.46100784,66030.0,66029.0,0.500826]
[1728921771224,0.46400784,66030.0,66029.0,0.000826]
[1728921771464,0.46100784,66030.0,66029.0,0.000826]
[1728921771696,0.63622979,66030.0,66029.0,0.000826]
[1728921771919,1.19428045,66030.0,66029.0,0.001826]
[1728921772147,0.256483,66014.0,66013.0,0.2274778]
[1728921772402,0.41001147,66014.0,66013.0,0.2274778]
[1728921772873,0.41001147,66014.0,66003.0,0.000826]
[1728921772874,0.151499,66007.0,66003.0,0.000826]
[1728921773568,0.151505,66004.0,66003.0,0.000826]
[1728921774936,0.151505,66004.0,66003.0,0.001826]
[1728921775638,0.151505,66004.0,66003.0,0.005826]
[1728921777414,0.151505,66004.0,66003.0,0.0285745]
[1728921779419,0.151505,66004.0,66003.0,0.005826]
[1728921779926,0.1,66012.0,66004.0,0.303008]
[1728921780150,0.4697,66022.0,66003.0,0.005826]
[1728921780151,0.2274778,66020.0,66011.0,0.17622195]
[1728921780376,0.2274778,66020.0,66019.0,0.17622195]
[1728921780605,0.01123094,66020.0,66019.0,0.17622195]
[1728921780833,0.151469,66020.0,66019.0,0.17622195]
[1728921781304,0.151469,66020.0,66015.0,0.17622195]
[1728921781305,0.151474,66018.0,66015.0,0.17622195]
[1728921781527,0.151483,66014.0,66013.0,0.03035]
[1728921782474,0.151478,66016.0,66015.0,0.01]
[1728921782717,0.33706662,66016.0,66015.0,0.01]
[1728921782986,0.66253771,66016.0,66015.0,0.01]
[1728921783230,0.66253771,66016.0,66008.0,0.2274778]
[1728921783231,0.554484,66009.0,66008.0,0.2274778]
[1728921783465,0.75132176,66009.0,66008.0,0.2274778]
[1728921783719,0.151505,66004.0,66003.0,0.000826]
[1728921783959,0.32128261,66004.0,66003.0,0.000826]
[1728921784222,0.69355487,66004.0,66003.0,0.000826]
[1728921784424,0.69355487,66004.0,65996.0,0.000825]
[1728921784425,0.46574395,65997.0,65996.0,0.000825]
[1728921784655,0.65866656,65997.0,65996.0,0.000825]
[1728921784933,0.284538,65990.0,65989.0,0.000827]
[1728921785150,0.62128842,65990.0,65989.0,0.000827]
[1728921785382,1.17569026,65990.0,65989.0,0.000827]
[1728921785615,0.161565,65978.0,65970.0,0.2274778]
[1728921785876,0.45609431,65978.0,65970.0,0.2274778]
[1728921786092,0.005,65964.0,65962.0,0.000826]
[1728921786398,0.63859878,65964.0,65962.0,0.000826]
[1728921786609,0.2796,65963.0,65962.0,0.000826]
[1728921786837,0.46237983,65963.0,65962.0,0.000826]
[1728921787299,0.43437983,65963.0,65962.0,0.000826]
[1728921787534,0.46237983,65963.0,65962.0,0.000826]
[1728921788229,0.48037983,65963.0,65942.0,0.2274778]
[1728921788448,0.43813247,65961.0,65942.0,0.2274778]
[1728921788680,0.46738383,65961.0,65942.0,0.2274778]
[1728921789590,0.46738383,65961.0,65960.0,0.001827]
[1728921789804,0.44932508,65961.0,65960.0,0.001827]
[1728921790095,0.46723326,65961.0,65960.0,0.001827]
[1728921790284,0.46723326,65961.0,65960.0,0.000827]
[1728921791438,0.44523326,65961.0,65960.0,0.000827]
[1728921791681,0.41613247,65961.0,65960.0,0.000827]
[1728921792115,0.42013247,65961.0,65960.0,0.000827]
[1728921792848,0.41613247,65961.0,65960.0,0.000827]
[1728921793101,0.151596,65965.0,65960.0,0.36494895]
[1728921793335,0.30512547,65965.0,65960.0,0.36494895]
[1728921793573,0.01,65961.0,65960.0,0.188727]
[1728921793814,0.004,65961.0,65960.0,0.188727]
[1728921794034,0.7971,65996.0,65960.0,0.188727]
[1728921794281,0.20992858,66035.0,65963.0,0.75801078]
[1728921794581,0.060653,66060.0,66043.0,0.005]
[1728921794852,0.060653,66060.0,66013.0,0.03035]
[1728921794853,0.005,66030.0,66003.0,0.005]
[1728921795158,0.005,66029.0,66003.0,0.0781]
[1728921795325,0.005,66029.0,66000.0,0.0809]
[1728921795326,0.005,66023.0,66000.0,0.0809]
[1728921795585,0.09123191,66029.0,65996.0,0.1809]
[1728921795586,0.01119341,66028.0,66009.0,0.002]
[1728921795814,0.302824,66045.0,66009.0,0.002]
[1728921795815,0.005,66038.0,66012.0,0.005]
[1728921796056,0.01119721,66037.0,66012.0,0.005]
[1728921796273,0.01119721,66037.0,66020.0,0.151469]
[1728921796498,0.023,66037.0,66025.0,0.002]
[1728921796957,0.007,66030.0,66025.0,0.002]
[1728921798174,0.001,66030.0,66025.0,0.007]
[1728921798614,0.001,66030.0,66025.0,0.015]
[1728921798874,0.001,66030.0,66025.0,0.013]
[1728921799103,0.001,66030.0,66025.0,0.005]
[1728921799325,0.002,66030.0,66025.0,0.018]
[1728921799772,0.001,66030.0,66025.0,0.013]
[1728921799988,0.1,66032.0,66019.0,0.002]
[1728921800228,0.001,66030.0,66025.0,0.005]
[1728921800456,0.1,66033.0,66021.0,0.002]
[1728921800897,0.001,66030.0,66025.0,0.005]
[1728921801611,0.001,66030.0,66025.0,0.008]
[1728921802034,0.002652,66030.0,66025.0,0.008]
[1728921803579,0.003652,66030.0,66025.0,0.013]
[1728921805146,0.003652,66030.0,66026.0,0.002]
[1728921805871,0.003652,66030.0,66025.0,0.013]
[1728921806091,0.002652,66030.0,66025.0,0.007]
[1728921806507,0.154099,66030.0,66026.0,0.002]
[1728921806923,0.002652,66030.0,66026.0,0.01]
[1728921807131,0.002652,66030.0,66027.0,0.002]
[1728921807342,0.003652,66030.0,66027.0,0.002]
[1728921807893,0.003652,66030.0,66028.0,0.002]
[1728921808090,0.001652,66030.0,66029.0,0.22717807]
[1728921808293,0.001652,66030.0,66028.0,0.002]
[1728921808294,0.001652,66030.0,66028.0,0.260057]
[1728921808500,0.002652,66030.0,66029.0,0.002]
[1728921808943,0.001652,66030.0,66029.0,0.002]
[1728921809418,0.003652,66030.0,66029.0,0.008]
[1728921809832,0.002652,66030.0,66029.0,0.01]
[1728921810260,0.003652,66030.0,66029.0,0.015]
[1728921810489,0.003652,66030.0,66029.0,0.013]
[1728921812949,0.155098,66030.0,66029.0,0.013]
[1728921813153,0.30862647,66030.0,66029.0,0.013]
[1728921817510,0.54531818,66030.0,66029.0,0.013]
[1728921817747,0.72810209,66030.0,66029.0,0.013]
[1728921818245,0.64730279,66030.0,66029.0,0.013]
[1728921818472,0.64630279,66030.0,66029.0,0.005]
[1728921818715,0.65230279,66030.0,66029.0,0.006]
[1728921819158,0.166455,66026.0,66025.0,0.000826]
[1728921819378,1.76712147,66026.0,66025.0,0.000826]
[1728921819600,1.77832895,66026.0,66025.0,0.000826]
[1728921820074,1.79626092,66026.0,66025.0,0.000826]
[1728921820545,1.81026092,66026.0,66025.0,0.000826]
[1728921821047,0.43519095,66026.0,66025.0,0.000826]
[1728921821271,0.44925406,66026.0,66025.0,0.000826]
[1728921821506,0.44925406,66026.0,66025.0,0.001826]
[1728921821507,0.46325406,66026.0,66025.0,0.001826]
[1728921821972,0.48125488,66026.0,66025.0,0.001826]
[1728921822414,0.49019177,66026.0,66025.0,0.001826]
[1728921823889,0.5060109,66026.0,66025.0,0.001826]
[1728921824136,0.5010109,66026.0,66025.0,0.001826]
[1728921824356,0.5060109,66026.0,66025.0,0.001826]
[1728921824663,0.5010109,66026.0,66025.0,0.001826]
[1728921824900,0.4578026,66026.0,66025.0,0.000826]
[1728921825388,0.4468026,66026.0,66025.0,0.000826]
[1728921825624,0.4488026,66026.0,66025.0,0.001826]
[1728921825871,0.4488026,66026.0,66025.0,0.000826]
[1728921826125,0.47820155,66026.0,66025.0,0.002826]
[1728921827284,0.47820155,66026.0,66025.0,0.004826]
[1728921827745,0.47820155,66026.0,66025.0,0.002826]
[1728921829149,0.4923327,66026.0,66025.0,0.002826]
[1728921829604,0.47820155,66026.0,66025.0,0.002826]
[1728921831513,0.05021808,66026.0,66025.0,0.002826]
[1728921832010,0.03212642,66026.0,66025.0,0.002826]
[1728921832299,0.03212642,66026.0,66025.0,0.004826]
[1728921832753,0.03212642,66026.0,66025.0,0.156283]
[1728921832979,0.02081913,66026.0,66025.0,0.186633]
[1728921833461,0.005,66026.0,66025.0,0.53216147]
[1728921834663,0.005,66026.0,66025.0,0.98453147]
[1728921834915,0.001652,66030.0,66029.0,0.188798]
[1728921835147,0.001652,66030.0,66029.0,0.81967729]
[1728921836354,0.002652,66030.0,66029.0,0.82467729]
[1728921836808,0.002652,66030.0,66029.0,0.83867729]
[1728921837027,0.003652,66030.0,66029.0,0.83867729]
[1728921841213,0.003652,66030.0,66029.0,1.06585536]
[1728921841449,0.09024593,66065.0,66029.0,1.06585536]
[1728921841450,0.24525002,66048.0,66034.0,0.03535]
[1728921841731,0.00165,66063.0,66061.0,0.002]
[1728921842246,0.00165,66063.0,66062.0,0.002]
[1728921842508,0.151391,66054.0,66053.0,0.002]
[1728921842751,0.302746,66062.0,66044.0,0.0815]
[1728921842752,0.15352847,66062.0,66046.0,0.002]
[1728921843027,0.15352847,66062.0,66041.0,0.37859807]
[1728921843028,0.302796,66051.0,66049.0,0.002]
[1728921843295,0.151418,66043.0,66041.0,0.22717807]
[1728921843525,0.15352847,66050.0,66041.0,0.22717807]
[1728921843774,0.17652929,66043.0,66038.0,0.22717807]
[1728921844015,0.15352847,66042.0,66034.0,0.45431]
[1728921844262,0.32796329,66035.0,66034.0,0.45431]
[1728921844729,0.274424,66040.0,66034.0,0.45431]
[1728921844974,0.01126767,66035.0,66034.0,0.45431]
[1728921845201,0.1,66040.0,66034.0,0.45431]
[1728921845418,0.0112694,66039.0,66034.0,0.48466]
[1728921845640,0.1,66040.0,66036.0,0.002]
[1728921845863,0.30494747,66042.0,66038.0,0.009]
[1728921845864,0.1,66041.0,66038.0,0.009]
[1728921846086,0.01126988,66040.0,66038.0,0.009]
[1728921846304,0.1,66041.0,66039.0,0.002]
[1728921846529,0.01126914,66040.0,66039.0,0.002]
[1728921846746,0.01126914,66040.0,66036.0,0.002]
[1728921846964,0.1,66041.0,66036.0,0.002]
[1728921846965,0.01126914,66039.0,66036.0,0.002]
[1728921847252,0.01126907,66040.0,66036.0,0.002]
[1728921847517,0.01126907,66040.0,66039.0,0.002]
[1728921847518,0.001,66040.0,66039.0,0.002]
[1728921847743,0.22164832,66060.0,66039.0,0.002]
[1728921847744,0.17652929,66051.0,66039.0,0.002]
[1728921847986,0.1,66046.0,66040.0,0.002]
[1728921848225,0.01127077,66045.0,66040.0,0.002]
[1728921848447,0.01127244,66044.0,66042.0,0.002]
[1728921848693,0.1,66049.0,66043.0,0.002]
[1728921848918,0.40493047,66049.0,66044.0,0.002]
[1728921849156,0.25352847,66049.0,66044.0,0.002]
[1728921849382,0.01127339,66048.0,66044.0,0.002]
[1728921849599,0.1,66049.0,66044.0,0.002]
[1728921849823,0.17652929,66055.0,66043.0,0.03035]
[1728921849824,0.01127715,66048.0,66043.0,0.03035]
[1728921850097,0.251398,66051.0,66043.0,0.03035]
[1728921850330,0.01128027,66050.0,66040.0,0.003]
[1728921850558,0.1,66049.0,66044.0,0.007]
[1728921850781,0.1,66049.0,66044.0,0.009]
[1728921851002,0.1,66049.0,66046.0,0.002]
[1728921851715,0.001,66050.0,66046.0,0.002]
[1728921851949,0.001,66050.0,66048.0,0.002]
[1728921852192,0.001,66050.0,66049.0,0.002]
[1728921852428,0.1,66053.0,66049.0,0.002]
[1728921852705,0.1,66051.0,66049.0,0.002]
[1728921853160,0.1,66051.0,66050.0,0.002]
[1728921853633,0.1,66051.0,66049.0,0.008]
[1728921853872,0.1,66056.0,66045.0,0.151411]
[1728921854101,0.01128107,66055.0,66045.0,0.002]
[1728921854319,0.001,66049.0,66046.0,0.007]
[1728921854539,0.01128107,66054.0,66043.0,0.181766]
[1728921854540,0.151392,66054.0,66043.0,0.03235]
[1728921854798,0.151414,66044.0,66043.0,0.03035]
[1728921855081,0.151414,66044.0,66035.0,0.22717807]
[1728921855082,0.33005776,66044.0,66035.0,0.22717807]
[1728921855360,0.151423,66040.0,66035.0,0.22717807]
[1728921855583,0.47937629,66040.0,66035.0,0.22717807]
[1728921855842,0.47937629,66040.0,66034.0,0.45431]
[1728921855843,0.151434,66035.0,66034.0,0.45431]
[1728921856335,0.30496247,66035.0,66034.0,0.45431]
[1728921856615,0.31624646,66035.0,66034.0,0.45431]
[1728921856813,0.43924646,66035.0,66034.0,0.45431]
[1728921857057,0.43924646,66035.0,66034.0,0.46831]
[1728921857311,0.45729618,66035.0,66034.0,0.46831]
[1728921857554,0.43924646,66035.0,66034.0,0.46831]
[1728921858036,0.44024646,66035.0,66034.0,0.47631]
[1728921858277,0.43924646,66035.0,66034.0,0.45431]
[1728921858514,0.45930181,66035.0,66034.0,0.45431]
[1728921858766,0.44124646,66035.0,66034.0,0.45431]
[1728921859012,0.459302,66035.0,66034.0,0.45431]
[1728921860012,0.44125076,66035.0,66034.0,0.45431]
[1728921860246,0.45931202,66035.0,66034.0,0.45431]
[1728921860474,0.43631202,66035.0,66034.0,0.45431]
[1728921860699,0.41990076,66035.0,66034.0,0.45431]
[1728921861367,0.46097262,66035.0,66034.0,0.45431]
[1728921861832,0.45897262,66035.0,66034.0,0.45431]
[1728921862058,0.46397262,66035.0,66034.0,0.45431]
[1728921863271,0.46397262,66035.0,66034.0,0.45631]
[1728921863497,0.46897262,66035.0,66034.0,0.45631]
[1728921863720,0.46897262,66035.0,66034.0,0.45431]
[1728921863941,0.44161247,66035.0,66034.0,0.45431]
[1728921864163,0.47095906,66035.0,66034.0,0.45431]
[1728921864385,0.46895906,66035.0,66034.0,0.45431]
[1728921864604,0.47795906,66035.0,66034.0,0.45531]
[1728921864832,0.151483,66014.0,66013.0,0.22717807]
[1728921865066,0.36229944,66014.0,66013.0,0.22717807]
[1728921865752,0.151494,66009.0,66006.0,0.22717807]
[1728921866218,0.16276774,66009.0,66006.0,0.22717807]
[1728921866439,0.151494,66009.0,66008.0,0.00041794]
[1728921866677,0.30502247,66009.0,66008.0,0.00041794]
[1728921867149,0.302952,66017.0,66008.0,0.00241794]
[1728921867369,0.1,66021.0,66008.0,0.00241794]
[1728921867370,0.003,66009.0,66008.0,0.00241794]
[1728921867826,0.003,66009.0,66008.0,0.15391394]
[1728921868283,0.1,66015.0,66014.0,0.002]
[1728921868511,0.40500847,66015.0,66014.0,0.002]
[1728921868731,0.1,66018.0,66016.0,0.002]
[1728921868964,0.023,66019.0,66018.0,0.002]
[1728921869191,0.274471,66019.0,66018.0,0.002]
[1728921869471,0.27652847,66019.0,66016.0,0.002]
[1728921869715,0.25352847,66018.0,66016.0,0.002]
[1728921869954,0.005,66024.0,66009.0,0.302987]
[1728921869955,0.1,66021.0,66018.0,0.002]
[1728921870185,0.1,66021.0,66014.0,0.22717807]
[1728921870186,0.251466,66021.0,66019.0,0.002]
[1728921870483,0.1,66021.0,66019.0,0.002]
[1728921870702,0.1,66021.0,66020.0,0.002]
[1728921871158,0.1,66021.0,66014.0,0.22717807]
[1728921871159,0.1,66021.0,66018.0,0.002]
[1728921871599,0.1,66020.0,66018.0,0.002]
[1728921871858,0.251471,66019.0,66018.0,0.003]
[1728921872119,0.1,66019.0,66018.0,0.003]
[1728921872353,0.1,66019.0,66016.0,0.002]
[1728921872582,0.1,66019.0,66018.0,0.006]
[1728921873367,0.251466,66022.0,66021.0,0.002]
[1728921874322,0.1,66023.0,66021.0,0.002]
[1728921874551,0.005,66033.0,66022.0,0.002]
[1728921874778,0.023,66029.0,66022.0,0.002]
[1728921875010,0.151456,66026.0,66022.0,0.002]
[1728921875280,0.151456,66026.0,66025.0,0.002]
[1728921875483,0.15352847,66028.0,66024.0,0.002]
[1728921875701,0.30497847,66028.0,66026.0,0.002]
[1728921875952,0.01581913,66032.0,66029.0,0.002]
[1728921876182,0.55641647,66031.0,66026.0,0.002]
[1728921876421,0.251453,66027.0,66026.0,0.002]
[1728921877152,0.1,66027.0,66026.0,0.004]
[1728921877341,0.1,66029.0,66026.0,0.003]
[1728921877576,0.251448,66029.0,66028.0,0.002]
[1728921878707,0.15352847,66031.0,66026.0,0.016]
[1728921878708,0.251453,66027.0,66026.0,0.016]
[1728921879202,0.251453,66027.0,66026.0,0.009]
[1728921879444,0.302902,66028.0,66024.0,0.002]
[1728921879445,0.1,66026.0,66024.0,0.002]
[1728921879699,0.251455,66026.0,66024.0,0.002]
[1728921879929,0.251455,66026.0,66025.0,0.002]
[1728921880290,0.251455,66026.0,66024.0,0.002]
[1728921880509,0.151466,66021.0,66020.0,0.03035]
[1728921880716,0.302919,66025.0,66016.0,0.002]
[1728921880933,0.151478,66016.0,66015.0,0.03035]
[1728921881267,0.15352847,66024.0,66010.0,0.08]
[1728921881268,0.023,66023.0,66011.0,0.002]
[1728921881503,0.151487,66012.0,66011.0,0.002]
[1728921881949,0.151484,66014.0,66011.0,0.002]
[1728921882186,0.302951,66018.0,66011.0,0.002]
[1728921882187,0.151482,66015.0,66011.0,0.002]
[1728921882396,0.15148,66016.0,66011.0,0.009]
[1728921882638,0.302955,66017.0,66012.0,0.03035]
[1728921882639,0.302963,66015.0,66012.0,0.03035]
[1728921883070,0.151483,66014.0,66012.0,0.03035]
[1728921883318,0.152483,66014.0,66012.0,0.03035]
[1728921883539,0.151485,66013.0,66012.0,0.03035]
[1728921883757,0.151485,66013.0,66012.0,0.03235]
[1728921884234,0.151485,66013.0,66012.0,0.03835]
[1728921884474,0.001,66014.0,66013.0,0.002]
[1728921884729,0.001,66014.0,66013.0,0.44212981]
[1728921885205,0.001,66015.0,66014.0,0.03235]
[1728921885443,0.001,66015.0,66014.0,0.183833]
[1728921885678,0.002,66015.0,66014.0,0.260633]
[1728921885970,0.001,66015.0,66014.0,0.90463435]
[1728921886219,0.001,66015.0,66014.0,0.61476147]
[1728921886474,0.22717807,66028.0,66020.0,0.183819]
[1728921886731,0.00165,66039.0,66020.0,0.60064228]
[1728921886983,0.22882807,66035.0,66034.0,0.002]
[1728921887196,0.22882807,66035.0,66034.0,0.44208181]
[1728921887447,0.00165,66035.0,66034.0,0.63288181]
[1728921887687,0.00165,66035.0,66034.0,0.71588181]
[1728921887921,0.00165,66035.0,66034.0,0.86941028]
[1728921888158,0.00165,66035.0,66034.0,0.96371035]
[1728921888386,0.00165,66035.0,66034.0,0.78741291]
[1728921889563,0.00165,66039.0,66038.0,0.03535]
[1728921889786,0.00165,66039.0,66038.0,1.14918035]
[1728921890002,0.00165,66039.0,66038.0,1.32212139]
[1728921890220,0.00165,66039.0,66038.0,1.31212139]
[1728921890440,0.00165,66039.0,66038.0,1.50932139]
[1728921890872,0.00165,66039.0,66038.0,1.52332139]
[1728921891322,0.00165,66039.0,66038.0,1.53732139]
[1728921892496,0.00165,66039.0,66038.0,1.27955343]
[1728921894929,0.00165,66039.0,66038.0,1.26955343]
[1728921895174,0.00165,66039.0,66038.0,1.27955343]
[1728921896468,0.00165,66039.0,66038.0,1.27755343]
[1728921896677,0.00165,66039.0,66038.0,1.27955343]
[1728921897608,0.00165,66039.0,66038.0,0.48428]
[1728921898479,0.00165,66039.0,66038.0,0.47028]
[1728921898945,0.00265,66039.0,66038.0,0.48328]
[1728921899413,0.00265,66039.0,66038.0,0.46928]
[1728921899871,0.00265,66039.0,66038.0,0.48328]
[1728921900309,0.00265,66039.0,66038.0,0.46928]
[1728921900736,0.00265,66039.0,66038.0,0.48328]
[1728921901482,0.00265,66039.0,66038.0,0.48128]
[1728921901483,0.30760347,66039.0,66038.0,0.48128]
[1728921901695,0.43060347,66039.0,66038.0,0.48128]
[1728921902614,0.44085653,66039.0,66038.0,0.45428]
[1728921902839,0.46341681,66039.0,66038.0,0.45428]
[1728921903063,0.46441922,66039.0,66038.0,0.45428]
[1728921903280,0.46441922,66039.0,66038.0,0.45628]
[1728921904008,0.46441922,66039.0,66038.0,0.45428]
[1728921904444,0.46441922,66039.0,66038.0,0.45528]
[1728921904875,0.45316375,66039.0,66038.0,0.45528]
[1728921907146,0.46443013,66039.0,66038.0,0.45528]
[1728921907361,0.46816375,66039.0,66038.0,0.45528]
[1728921907585,0.5727544,66039.0,66038.0,0.001]
[1728921908973,0.5717544,66039.0,66038.0,0.001]
[1728921909223,0.5827544,66039.0,66038.0,0.002]
[1728921909911,0.5827544,66039.0,66038.0,0.001]
[1728921910797,0.73739491,66039.0,66038.0,0.002]
[1728921911007,0.5837544,66039.0,66038.0,0.002]
[1728921913180,0.5034544,66039.0,66038.0,0.002]
[1728921913427,0.4934544,66039.0,66038.0,0.002]
[1728921913659,0.48042974,66039.0,66038.0,0.002]
[1728921913914,0.35242974,66039.0,66038.0,0.002]
[1728921914126,0.01365,66039.0,66038.0,0.002]
[1728921914399,0.01365,66039.0,66038.0,0.155427]
[1728921914610,0.01365,66039.0,66038.0,0.004]
[1728921915088,0.00265,66039.0,66038.0,0.003]
[1728921915567,0.00165,66039.0,66038.0,0.03735]
[1728921915800,0.00165,66039.0,66038.0,0.03935]
[1728921916248,0.00165,66039.0,66038.0,0.03235]
[1728921916474,0.00165,66039.0,66038.0,0.002]
[1728921916702,0.00265,66039.0,66038.0,0.195777]
[1728921916934,0.00265,66039.0,66038.0,0.23296299]
[1728921917169,0.00265,66039.0,66038.0,0.08153599]
[1728921917896,0.00265,66039.0,66038.0,0.31146299]
[1728921919090,0.00265,66039.0,66038.0,0.31646299]
[1728921919316,0.00265,66039.0,66038.0,0.47999146]
[1728921920457,0.00265,66039.0,66038.0,0.46599146]
[1728921920972,0.00265,66039.0,66038.0,0.93427146]
[1728921921426,0.00165,66039.0,66038.0,0.60231599]
[1728921921654,0.00165,66039.0,66038.0,0.51463]
[1728921921875,0.153075,66039.0,66038.0,0.51463]
[1728921922101,0.00165,66039.0,66038.0,0.51463]
[1728921922553,0.153075,66039.0,66038.0,0.51463]
[1728921922796,0.00165,66039.0,66038.0,0.51463]
[1728921923931,0.153075,66039.0,66038.0,0.53770309]
[1728921924147,0.00165,66039.0,66038.0,0.48428]
[1728921925081,0.153075,66039.0,66038.0,0.48428]
[1728921925293,0.153075,66039.0,66038.0,0.48228]
[1728921926185,0.30660347,66039.0,66038.0,0.48228]
[1728921926394,0.44587493,66039.0,66038.0,0.48228]
[1728921926619,0.4639133,66039.0,66038.0,0.48228]
[1728921927315,0.47202976,66039.0,66038.0,0.48228]
[1728921927560,0.47202976,66039.0,66038.0,0.46828]
[1728921927772,0.48202976,66039.0,66038.0,0.45428]
[1728921928000,0.50433783,66039.0,66038.0,0.46528]
[1728921928724,0.50433783,66039.0,66038.0,0.45428]
[1728921928936,0.50433783,66039.0,66038.0,0.45528]
[1728921929162,0.50533783,66039.0,66038.0,0.45528]
[1728921929388,0.50433783,66039.0,66038.0,0.46828]
[1728921929853,0.015,66036.0,66035.0,0.000825]
[1728921930065,0.71199989,66036.0,66035.0,0.000825]
[1728921930277,0.73003826,66036.0,66035.0,0.000825]
[1728921930495,0.77512662,66036.0,66035.0,0.000825]
[1728921930709,0.73003826,66036.0,66035.0,0.000825]
[1728921931197,0.4722703,66036.0,66035.0,0.000825]
[1728921931419,0.62791081,66036.0,66035.0,0.000825]
[1728921931643,0.4742703,66036.0,66035.0,0.000825]
[1728921931858,0.4752703,66036.0,66035.0,0.001825]
[1728921932598,0.4752703,66036.0,66018.0,0.22717807]
[1728921932599,0.174471,66019.0,66018.0,0.22717807]
[1728921933249,0.15148,66015.0,66014.0,0.000825]
[1728921934440,0.15148,66015.0,66014.0,0.009825]
[1728921935336,0.15248,66015.0,66014.0,0.018825]
[1728921936303,0.32900847,66015.0,66014.0,0.016825]
[1728921936517,0.42900847,66015.0,66014.0,0.016825]
[1728921937182,0.44026413,66015.0,66014.0,0.016825]
[1728921937409,0.42900847,66015.0,66014.0,0.016825]
[1728921937857,0.44026283,66015.0,66014.0,0.016825]
[1728921938085,0.42900847,66015.0,66014.0,0.016825]
[1728921940198,0.42900847,66015.0,66014.0,0.018825]
[1728921940437,0.001,66015.0,66014.0,0.35629296]
[1728921940671,0.001,66015.0,66014.0,0.89745443]
[1728921940892,0.001,66015.0,66014.0,0.329675]
[1728921941116,0.001,66015.0,66014.0,0.018825]
[1728921941117,0.15452847,66015.0,66014.0,0.018825]
[1728921941340,0.15248,66015.0,66014.0,0.016825]
[1728921941563,0.15248,66015.0,66014.0,0.000825]
[1728921941564,0.15148,66015.0,66014.0,0.000825]
[1728921941791,0.15248,66015.0,66014.0,0.007825]
[1728921942008,0.002,66015.0,66014.0,0.016825]
[1728921942201,0.001,66015.0,66014.0,0.009825]
[1728921942472,0.002,66015.0,66014.0,0.016825]
[1728921942921,0.15348,66015.0,66014.0,0.01285496]
[1728921943143,0.14816223,66015.0,66014.0,0.01285496]
[1728921943372,0.3246907,66015.0,66014.0,0.01285496]
[1728921943596,0.44094059,66015.0,66014.0,0.01285496]
[1728921944320,0.44094059,66015.0,66014.0,0.007]
[1728921944548,0.44937805,66015.0,66014.0,0.007]
[1728921944770,0.174494,66009.0,66008.0,0.00041794]
[1728921944996,0.32802247,66009.0,66008.0,0.00041794]
[1728921946096,0.32802247,66009.0,66008.0,0.00941794]
[1728921946823,0.44302247,66009.0,66008.0,0.00941794]
[1728921947045,0.66161354,66009.0,66008.0,0.00941794]
[1728921947486,0.58138054,66009.0,66008.0,0.02141794]
[1728921947734,0.47325654,66009.0,66008.0,0.02141794]
[1728921948189,0.47325654,66009.0,66008.0,0.01241794]
[1728921948409,0.47225654,66009.0,66008.0,0.00041794]
[1728921948602,0.48625654,66009.0,66008.0,0.00241794]
[1728921948856,0.48625654,66009.0,66008.0,0.00141794]
[1728921949289,0.49125654,66009.0,66008.0,0.00241794]
[1728921949527,0.80354254,66009.0,66008.0,0.00241794]
[1728921951139,0.49125654,66009.0,66008.0,0.00241794]
[1728921951625,0.166517,65999.0,65998.0,0.22717807]
[1728921951848,0.71205981,65999.0,65998.0,0.22717807]
[1728921952084,0.73005402,65999.0,65998.0,0.22717807]
[1728921952312,0.279535,65991.0,65983.0,0.22717807]
[1728921952534,0.72007202,65991.0,65983.0,0.22717807]
[1728921953016,0.174551,65984.0,65983.0,0.22717807]
[1728921953233,0.174551,65984.0,65977.0,0.002]
[1728921953234,0.174565,65978.0,65977.0,0.002]
[1728921953459,0.32809347,65978.0,65977.0,0.002]
[1728921953966,0.303113,65982.0,65977.0,0.002]
[1728921954201,0.17652847,65982.0,65977.0,0.002]
[1728921954439,0.151545,65987.0,65980.0,0.03035]
[1728921954673,0.151544,65988.0,65980.0,0.18191]
[1728921954911,0.151544,65988.0,65981.0,0.151557]
[1728921954912,0.151542,65988.0,65981.0,0.151557]
[1728921955146,0.151547,65986.0,65980.0,0.03035]
[1728921955373,0.1,65990.0,65985.0,0.02]
[1728921955612,0.151535,65992.0,65988.0,0.002]
[1728921955829,0.1,65995.0,65986.0,0.002]
[1728921955830,0.303062,65993.0,65986.0,0.002]
[1728921956047,0.001,65988.0,65986.0,0.153547]
[1728921956275,0.001,65988.0,65987.0,0.0783]
[1728921957139,0.152542,65988.0,65987.0,0.0783]
[1728921957377,0.001,65988.0,65987.0,0.0783]
[1728921957596,0.152542,65988.0,65987.0,0.0783]
[1728921957833,0.001,65988.0,65987.0,0.0803]
[1728921958048,0.151538,65990.0,65988.0,0.002]
[1728921958500,0.151531,65993.0,65988.0,0.002]
[1728921958735,0.151538,65990.0,65988.0,0.002]
[1728921958955,0.1,65994.0,65988.0,0.002]
[1728921959263,0.151534,65992.0,65988.0,0.002]
[1728921959475,0.151532,65993.0,65988.0,0.153542]
[1728921959741,0.001,65990.0,65988.0,0.01]
[1728921959946,0.001,65990.0,65989.0,0.002]
[1728921960623,0.001,65990.0,65989.0,0.1973]
[1728921960881,0.023,66002.0,65995.0,0.002]